{"text_format":"2","workbook":"xlsx","n_sheets":1,"sheets":["Лист1"],"not_rendered":{"charts":0,"images":0,"macros":0,"external_links":0,"defined_names":0,"comments":0,"pivot_tables":0},"unopened":[],"bounds":{"document_bytes":16777216,"sheet_cells":100000,"run_cost":"one","rows_first":2000,"rows_last":500,"rows_between":2000,"halvings":0,"cell_chars":16384,"cell_head_chars":4096},"cells_cut":0,"cells_raw":0,"read":"whole","date_system":"1900"}

{"sheet":"Лист1","index":0,"n_rows":44,"n_cols":47,"rows_kept":44,"cut":false,"hidden":false,"merged":[[1,1,1,12],[6,13,6,18],[5,3,7,3],[2,1,2,6],[6,37,6,39],[6,25,6,30],[5,5,7,5],[3,1,3,6],[35,1,35,46],[8,1,8,46],[5,7,5,33],[5,6,7,6],[40,1,40,46],[5,1,7,1],[6,40,6,42],[24,1,24,46],[6,34,6,36],[5,46,7,46],[5,34,5,45],[5,2,7,2],[16,1,16,46],[6,7,6,12],[6,19,6,24],[6,31,6,33],[5,4,7,4],[6,43,6,45]]}
[{"$nulls":4},"Отправить данные в минэкономики"]
[null,"Выполнение проектов/мероприятий программы развития производительных сил ","Выполнение проектов/мероприятий программы развития производительных сил ","Выполнение проектов/мероприятий программы развития производительных сил ","Выполнение проектов/мероприятий программы развития производительных сил ","Выполнение проектов/мероприятий программы развития производительных сил ","Выполнение проектов/мероприятий программы развития производительных сил ","Выполнение проектов/мероприятий программы развития производительных сил ","Выполнение проектов/мероприятий программы развития производительных сил ","Выполнение проектов/мероприятий программы развития производительных сил ","Выполнение проектов/мероприятий программы развития производительных сил ","Выполнение проектов/мероприятий программы развития производительных сил ","Выполнение проектов/мероприятий программы развития производительных сил "]
[null,"Княгининский район","Княгининский район","Княгининский район","Княгининский район","Княгининский район","Княгининский район"]
[null,"II полугодие 2018","II полугодие 2018","II полугодие 2018","II полугодие 2018","II полугодие 2018","II полугодие 2018"]
[]
[null,"№","Наименование предприятия/хозяйствующего субъекта (с указанием типа - крупное, среднее, малое, ИП)/наименование поселения","Отрасль","Наименование проекта/мероприятия","Сроки реализации","Ответственный орган исполнительной власти Нижегородской области","Объем финансирования,  млн. руб.","Объем финансирования,  млн. руб.","Объем финансирования,  млн. руб.","Объем финансирования,  млн. руб.","Объем финансирования,  млн. руб.","Объем финансирования,  млн. руб.","Объем финансирования,  млн. руб.","Объем финансирования,  млн. руб.","Объем финансирования,  млн. руб.","Объем финансирования,  млн. руб.","Объем финансирования,  млн. руб.","Объем финансирования,  млн. руб.","Объем финансирования,  млн. руб.","Объем финансирования,  млн. руб.","Объем финансирования,  млн. руб.","Объем финансирования,  млн. руб.","Объем финансирования,  млн. руб.","Объем финансирования,  млн. руб.","Объем финансирования,  млн. руб.","Объем финансирования,  млн. руб.","Объем финансирования,  млн. руб.","Объем финансирования,  млн. руб.","Объем финансирования,  млн. руб.","Объем финансирования,  млн. руб.","Объем финансирования,  млн. руб.","Объем финансирования,  млн. руб.","Объем финансирования,  млн. руб.","Эффект от реализации проектов /мероприятий","Эффект от реализации проектов /мероприятий","Эффект от реализации проектов /мероприятий","Эффект от реализации проектов /мероприятий","Эффект от реализации проектов /мероприятий","Эффект от реализации проектов /мероприятий","Эффект от реализации проектов /мероприятий","Эффект от реализации проектов /мероприятий","Эффект от реализации проектов /мероприятий","Эффект от реализации проектов /мероприятий","Эффект от реализации проектов /мероприятий","Эффект от реализации проектов /мероприятий","Дополнительная информация о проекте/мероприятии (с указанием причин невыполнения)"]
[null,"№","Наименование предприятия/хозяйствующего субъекта (с указанием типа - крупное, среднее, малое, ИП)/наименование поселения","Отрасль","Наименование проекта/мероприятия","Сроки реализации","Ответственный орган исполнительной власти Нижегородской области","Всего, в т.ч.","Всего, в т.ч.","Всего, в т.ч.","Всего, в т.ч.","Всего, в т.ч.","Всего, в т.ч.","Федеральный бюджет","Федеральный бюджет","Федеральный бюджет","Федеральный бюджет","Федеральный бюджет","Федеральный бюджет","Областной бюджет","Областной бюджет","Областной бюджет","Областной бюджет","Областной бюджет","Областной бюджет","Местный бюджет","Местный бюджет","Местный бюджет","Местный бюджет","Местный бюджет","Местный бюджет","Частные инвестиции (собственные и привлеченные средства)","Частные инвестиции (собственные и привлеченные средства)","Частные инвестиции (собственные и привлеченные средства)","Объем отгруженной продукции (услуг), млн.руб.","Объем отгруженной продукции (услуг), млн.руб.","Объем отгруженной продукции (услуг), млн.руб.","Объем оборота розничной торговли и общественного питания, млн. руб.","Объем оборота розничной торговли и общественного питания, млн. руб.","Объем оборота розничной торговли и общественного питания, млн. руб.","Налоговые поступления в консолидированный бюджет, млн.руб.","Налоговые поступления в консолидированный бюджет, млн.руб.","Налоговые поступления в консолидированный бюджет, млн.руб.","Создано рабочих мест, ед.","Создано рабочих мест, ед.","Создано рабочих мест, ед.","Дополнительная информация о проекте/мероприятии (с указанием причин невыполнения)"]
[null,"№","Наименование предприятия/хозяйствующего субъекта (с указанием типа - крупное, среднее, малое, ИП)/наименование поселения","Отрасль","Наименование проекта/мероприятия","Сроки реализации","Ответственный орган исполнительной власти Нижегородской области","План","Профинансировано в рамках ПРПС","Освоено (кассовые расходы) в рамках ПРПС","% финансирования от плана","% освоения средств от объема финансирования","% освоения средств от плана","План","Профинансировано в рамках ПРПС","Освоено (кассовые расходы) в рамках ПРПС","% финансирования от плана","% освоения средств от объема финансирования","% освоения средств от плана","План","Профинансировано в рамках ПРПС","Освоено (кассовые расходы) в рамках ПРПС","% финансирования от плана","% освоения средств от объема финансирования","% освоения средств от плана","План","Профинансировано в рамках ПРПС","Освоено (кассовые расходы) в рамках ПРПС","% финансирования от плана","% освоения средств от объема финансирования","% освоения средств от плана","План","Факт","% от плана","План","Факт","% от плана","План","Факт","% от плана","План","Факт","% от плана","План","Факт","% от плана","Дополнительная информация о проекте/мероприятии (с указанием причин невыполнения)"]
[null,"Промышленность","Промышленность","Промышленность","Промышленность","Промышленность","Промышленность","Промышленность","Промышленность","Промышленность","Промышленность","Промышленность","Промышленность","Промышленность","Промышленность","Промышленность","Промышленность","Промышленность","Промышленность","Промышленность","Промышленность","Промышленность","Промышленность","Промышленность","Промышленность","Промышленность","Промышленность","Промышленность","Промышленность","Промышленность","Промышленность","Промышленность","Промышленность","Промышленность","Промышленность","Промышленность","Промышленность","Промышленность","Промышленность","Промышленность","Промышленность","Промышленность","Промышленность","Промышленность","Промышленность","Промышленность","Промышленность"]
[null,"1.1","ОАО \"Княгининское молоко\"  / Крупное / ","Пищевая промышленность","Модернизация головного предприятия ОАО \"Княгининское молоко\"","2010 - 2020","Министерство сельского хозяйства и продовольственных ресурсов Нижегородской области ",40,0,46.300000000000004,0,null,115.75,null,0,0,{"$nulls":4},0,0,{"$nulls":4},0,0,null,null,null,40,46.300000000000004,115.75,2600,2414.2000000000003,92.853846153846163,null,0,null,45.5,45.5,100,null,0]
[null,"1.2","ООО \"Княгиниская ДСК\" / Малое / ","Строительство","Производство общестроительных работ по строительству автомобильных дорог, железных дорог и взлетно-посадочных полос аэродрома","2015 - 2020","Министерство промышленности, торговли и предпринимательства Нижегородской области",0,0,0,{"$nulls":4},0,0,{"$nulls":4},0,0,{"$nulls":4},0,0,null,null,null,0,0,null,59,63.800000000000004,108.13559322033899,null,0,null,2.5,2.5,100,null,0]
[null,"1.3","ООО \"Крупко\" / Малое / ","Пищевая промышленность","Увеличение объемов производства крупяных изделий","2010 - 2020","Министерство промышленности, торговли и предпринимательства Нижегородской области",0,0,0,{"$nulls":4},0,0,{"$nulls":4},0,0,{"$nulls":4},0,0,null,null,null,0,0,null,null,0,null,null,0,null,null,0,null,null,0]
[null,"1.4","ООО \"Сервис-НН\" / Малое / ","Пищевая промышленность","Открытие производства минеральных вод и других безалкогольных напитков","2015 - 2020","Министерство промышленности, торговли и предпринимательства Нижегородской области",0,0,0,{"$nulls":4},0,0,{"$nulls":4},0,0,{"$nulls":4},0,0,null,null,null,0,0,null,null,0,null,null,0,null,null,0,null,null,0]
[null,"1.5","ООО \"Водолей\"  / Малое / ","Пищевая промышленность","Открытие производства бутилированной воды","2013 - 2020","Министерство промышленности, торговли и предпринимательства Нижегородской области",0,0,0,{"$nulls":4},0,0,{"$nulls":4},0,0,{"$nulls":4},0,0,null,null,null,0,0,null,1.1400000000000001,1.1500000000000001,100.87719298245614,null,0,null,0.3,0.3,100,null,0]
[null,"1.6","ООО \"Колобок\" / Малое / ","Пищевая промышленность","Реконструкция производства на ООО \"Колобок\"","2016 - 2020","Министерство промышленности, торговли и предпринимательства Нижегородской области",0,0,0,{"$nulls":4},0,0,{"$nulls":4},0,0,{"$nulls":4},0,0,null,null,null,0,0,null,37.5,48.1,128.26666666666668,null,0,null,2.5,2.5,100,null,0]
[null,"1.7","ИП \"Емельянов\" / ИП / ","Пищевая промышленность","Открытие производства мясных полуфабрикатов","2017 - 2020","Министерство промышленности, торговли и предпринимательства Нижегородской области",0,0,0,{"$nulls":4},0,0,{"$nulls":4},0,0,{"$nulls":4},0,0,null,null,null,0,0,null,0.3,0.3,100,null,0,null,0.04,0.04,100,null,0]
[null,"Сельское хозяйство","Сельское хозяйство","Сельское хозяйство","Сельское хозяйство","Сельское хозяйство","Сельское хозяйство","Сельское хозяйство","Сельское хозяйство","Сельское хозяйство","Сельское хозяйство","Сельское хозяйство","Сельское хозяйство","Сельское хозяйство","Сельское хозяйство","Сельское хозяйство","Сельское хозяйство","Сельское хозяйство","Сельское хозяйство","Сельское хозяйство","Сельское хозяйство","Сельское хозяйство","Сельское хозяйство","Сельское хозяйство","Сельское хозяйство","Сельское хозяйство","Сельское хозяйство","Сельское хозяйство","Сельское хозяйство","Сельское хозяйство","Сельское хозяйство","Сельское хозяйство","Сельское хозяйство","Сельское хозяйство","Сельское хозяйство","Сельское хозяйство","Сельское хозяйство","Сельское хозяйство","Сельское хозяйство","Сельское хозяйство","Сельское хозяйство","Сельское хозяйство","Сельское хозяйство","Сельское хозяйство","Сельское хозяйство","Сельское хозяйство","Сельское хозяйство"]
[null,"2.1","ЗАО \"Покровская слобода\" / Среднее / ","Животноводство","Реконструкция животноводческих комплексов на 200 голов ","2010 - 2020","Министерство сельского хозяйства и продовольственных ресурсов Нижегородской области ",2.5,0,6.7,0,null,268,null,0,0,{"$nulls":4},0,0,{"$nulls":4},0,0,null,null,null,2.5,6.7,268,21.5,22,102.32558139534883,null,0,null,1.32,1.32,100,null,0]
[null,"2.2","Сельскохозяйственные предприятия и организации, КФХ  / Малое / ","Растениеводство","Приобретение энергосберегающей, высокопроизводительной техники","2010 - 2020","Министерство сельского хозяйства и продовольственных ресурсов Нижегородской области ",30,0,67,0,null,223.33333333333334,null,0,0,{"$nulls":4},0,0,{"$nulls":4},0,0,null,null,null,30,67,223.33333333333334,1.4000000000000001,1.5,107.14285714285714,null,0,null,0.15,0.2,133.33333333333334,2,2,100]
[null,"2.3","Сельскохозяйственные предприятия и организации, КФХ  / Малое / ","Животноводство","Приобретение племенного скота","2010 - 2020","Министерство сельского хозяйства и продовольственных ресурсов Нижегородской области ",0,0,0,{"$nulls":4},0,0,{"$nulls":4},0,0,{"$nulls":4},0,0,null,null,null,0,0,null,null,0,null,null,0,null,null,0,null,null,0]
[null,"2.4","ЛПХ и КФХ / КФХ / ","Сельское хозяйство","Развитие ЛПХ и КФХ, льготное кредитование ЛПХ и КФХ","2010 - 2020","Министерство сельского хозяйства и продовольственных ресурсов Нижегородской области ",1,0.33,1.33,33,403.030303030303,133,null,0,0,{"$nulls":4},0.33,0.33,null,100,null,null,0,0,null,null,null,1,1,100,null,0,null,null,0,null,null,0,null,null,0]
[null,"2.5","КФХ \"Полянская С.М.\" / КФХ / ","Сельское хозяйство","Развитие семейных животноводческих ферм","2014 - 2020","Министерство сельского хозяйства и продовольственных ресурсов Нижегородской области ",0,0,0,{"$nulls":4},0,0,{"$nulls":4},0,0,{"$nulls":4},0,0,null,null,null,0,0,null,5.5,5.5,100,null,0,null,0.2,0.2,100,null,0]
[null,"2.6","ООО \"Новая звезда\" / Малое / ","Сельское хозяйство","Развитие животноводческих ферм","2018 - 2020","Министерство сельского хозяйства и продовольственных ресурсов Нижегородской области ",0,0,8.1,{"$nulls":4},0,0,{"$nulls":4},0,0,{"$nulls":4},0,0,null,null,null,0,8.1,null,10,10,100,null,0,null,0.70000000000000007,0.70000000000000007,99.999999999999986,null,0]
[null,"2.7","КФХ \"Моисеева Д.А.\" / КФХ / ","Сельское хозяйство","Развитие семейных животноводческих ферм","2018 - 2020","Министерство сельского хозяйства и продовольственных ресурсов Нижегородской области ",1.4,0.8,1.4,57.142857142857146,175,100,0.4,0.4,0.4,100,100,100,0.4,0.4,0.4,100,100,100,null,0,0,null,null,null,0.6,0.6,100,23,23,100,null,0,null,1.5,1.5,100,1,1,100]
[null,"Торговля, общественное питание, платные услуги населению","Торговля, общественное питание, платные услуги населению","Торговля, общественное питание, платные услуги населению","Торговля, общественное питание, платные услуги населению","Торговля, общественное питание, платные услуги населению","Торговля, общественное питание, платные услуги населению","Торговля, общественное питание, платные услуги населению","Торговля, общественное питание, платные услуги населению","Торговля, общественное питание, платные услуги населению","Торговля, общественное питание, платные услуги населению","Торговля, общественное питание, платные услуги населению","Торговля, общественное питание, платные услуги населению","Торговля, общественное питание, платные услуги населению","Торговля, общественное питание, платные услуги населению","Торговля, общественное питание, платные услуги населению","Торговля, общественное питание, платные услуги населению","Торговля, общественное питание, платные услуги населению","Торговля, общественное питание, платные услуги населению","Торговля, общественное питание, платные услуги населению","Торговля, общественное питание, платные услуги населению","Торговля, общественное питание, платные услуги населению","Торговля, общественное питание, платные услуги населению","Торговля, общественное питание, платные услуги населению","Торговля, общественное питание, платные услуги населению","Торговля, общественное питание, платные услуги населению","Торговля, общественное питание, платные услуги населению","Торговля, общественное питание, платные услуги населению","Торговля, общественное питание, платные услуги населению","Торговля, общественное питание, платные услуги населению","Торговля, общественное питание, платные услуги населению","Торговля, общественное питание, платные услуги населению","Торговля, общественное питание, платные услуги населению","Торговля, общественное питание, платные услуги населению","Торговля, общественное питание, платные услуги населению","Торговля, общественное питание, платные услуги населению","Торговля, общественное питание, платные услуги населению","Торговля, общественное питание, платные услуги населению","Торговля, общественное питание, платные услуги населению","Торговля, общественное питание, платные услуги населению","Торговля, общественное питание, платные услуги населению","Торговля, общественное питание, платные услуги населению","Торговля, общественное питание, платные услуги населению","Торговля, общественное питание, платные услуги населению","Торговля, общественное питание, платные услуги населению","Торговля, общественное питание, платные услуги населению","Торговля, общественное питание, платные услуги населению"]
[null,"3.1","ЗАО \"ИКС 5 Недвижимость\" / Крупное / ","Торговля","Строительство магазина \"Пятерочка\"","2014 - 2020","Министерство промышленности, торговли и предпринимательства Нижегородской области",0,0,0,{"$nulls":4},0,0,{"$nulls":4},0,0,{"$nulls":4},0,0,null,null,null,0,0,null,null,0,null,84.5,84.5,100,1,1,100,null,0]
[null,"3.2","ООО \"Магистраль\" / Малое / ","Торговля, общественное питание","Строительство гостиницы","2016 - 2020","Министерство промышленности, торговли и предпринимательства Нижегородской области",0,0,0,{"$nulls":4},0,0,{"$nulls":4},0,0,{"$nulls":4},0,0,null,null,null,0,0,null,null,0,null,null,0]
[null,"3.3","МУП \"Княгининское ЖКХ\" / Среднее / ","Платные услуги","Строительство муниципальной бани","2014 - 2020","Министерство промышленности, торговли и предпринимательства Нижегородской области",0,0,0,{"$nulls":4},0,0,{"$nulls":4},0,0,{"$nulls":4},0,0,null,null,null,0,0,null,0.6,0.73,121.66666666666667,null,0,null,0.1,0.1,100,null,0]
[null,"3.4","ООО \"Магистраль\" / Малое / ","Торговля, общественное питание","Реконструкция кафе 45-й км","2015 - 2020","Министерство промышленности, торговли и предпринимательства Нижегородской области",0,0,0,{"$nulls":4},0,0,{"$nulls":4},0,0,{"$nulls":4},0,0,null,null,null,0,0,null,8,7.6000000000000005,95,5.2,5.2,100,0.3,0.3,100,null,0]
[null,"3.5","ИП \"Гаранина И.А.\" / ИП / ","Торговля, общественное питание","Реконструкция здания столовой в кафе на 90 посадочных мест","2014 - 2020","Министерство промышленности, торговли и предпринимательства Нижегородской области",0,0,0,{"$nulls":4},0,0,{"$nulls":4},0,0,{"$nulls":4},0,0,null,null,null,0,0,null,null,0,null,1.2,1.2,100,0.12,0.12,100,null,0]
[null,"3.6","ИП, малые предприятия / ИП / ","Розничная торговля","Строительство, реконструкция зданий 4-х магазинов в г.Княгинино","2016 - 2020","Министерство промышленности, торговли и предпринимательства Нижегородской области",0,0,0,{"$nulls":4},0,0,{"$nulls":4},0,0,{"$nulls":4},0,0,null,null,null,0,0,null,null,0,null,5.3,5.3,100,0.15,0.15,100,null,0]
[null,"3.7","Администрация Княгининского муниципального района / Среднее / ","Розничная торговля","Строительство здания на площади \"Ярмарки выходного дня\"","2016 - 2020","Администрация муниципального района (городского округа)",0,0,0,{"$nulls":4},0,0,{"$nulls":4},0,0,{"$nulls":4},0,0,null,null,null,0,0,null,null,0,null,null,0,null,null,0,null,null,0]
[null,"3.8","ИП \"Звягинцев\" / ИП / ","Торговля, общественное питание","Реконструкция кафе-пицерия","2017 - 2020","Министерство промышленности, торговли и предпринимательства Нижегородской области",0,0,0,{"$nulls":4},0,0,{"$nulls":4},0,0,{"$nulls":4},0,0,null,null,null,0,0,null,null,0,null,0.5,0.6,120,0.04,0.05,125,1,1,100]
[null,"3.9","ИП \"Водянова\" / ИП / ","Торговля, общественное питание","Открытие кафе-пиццерия","2017 - 2020","Министерство промышленности, торговли и предпринимательства Нижегородской области",0,0,0,{"$nulls":4},0,0,{"$nulls":4},0,0,{"$nulls":4},0,0,null,null,null,0,0,null,null,0,null,0.6,0.6,100,0.04,0.05,125,null,0]
[null,"3.10","ИП, малые предприятия / ИП / ","Торговля","Строительство 3-х торговых центров в г. Княгинино","2017 - 2020","Министерство промышленности, торговли и предпринимательства Нижегородской области",15,0,15,0,null,100,null,0,0,{"$nulls":4},0,0,{"$nulls":4},0,0,null,null,null,15,15,100,null,0,null,35,35,100,0.70000000000000007,0.70000000000000007,99.999999999999986,12,12,100]
[null,"Инженерная инфраструктура","Инженерная инфраструктура","Инженерная инфраструктура","Инженерная инфраструктура","Инженерная инфраструктура","Инженерная инфраструктура","Инженерная инфраструктура","Инженерная инфраструктура","Инженерная инфраструктура","Инженерная инфраструктура","Инженерная инфраструктура","Инженерная инфраструктура","Инженерная инфраструктура","Инженерная инфраструктура","Инженерная инфраструктура","Инженерная инфраструктура","Инженерная инфраструктура","Инженерная инфраструктура","Инженерная инфраструктура","Инженерная инфраструктура","Инженерная инфраструктура","Инженерная инфраструктура","Инженерная инфраструктура","Инженерная инфраструктура","Инженерная инфраструктура","Инженерная инфраструктура","Инженерная инфраструктура","Инженерная инфраструктура","Инженерная инфраструктура","Инженерная инфраструктура","Инженерная инфраструктура","Инженерная инфраструктура","Инженерная инфраструктура","Инженерная инфраструктура","Инженерная инфраструктура","Инженерная инфраструктура","Инженерная инфраструктура","Инженерная инфраструктура","Инженерная инфраструктура","Инженерная инфраструктура","Инженерная инфраструктура","Инженерная инфраструктура","Инженерная инфраструктура","Инженерная инфраструктура","Инженерная инфраструктура","Инженерная инфраструктура"]
[null,"4.1","ГБУЗ НО \"Княгининская ЦРБ\" / Среднее / ","Инженерная инфраструктура","Оснащение ГБУЗ НО \"Княгиниская ЦРБ\" телемедицинским оборудованием а рамках ГП \"Развитие здравоохранения НО\"","2018 - 2020","Администрация муниципального района (городского округа)",0,0,0,{"$nulls":4},0,0,{"$nulls":4},0,0,{"$nulls":4},0,0,null,null,null,0,0,null,null,0,null,null,0,null,null,0,null,null,0]
[null,"4.2","Администрация Княгининского муниципального района / Среднее / ","Инженерная инфраструктура","Благоустройство мест массового отдыха населения (центрального парка в г.Княгинино)","2018 - 2018","Администрация муниципального района (городского округа)",0.9,4.29,4.29,476.66666666666663,100,476.66666666666663,null,2.21,2.21,null,100,null,0.65,0.79,0.79,121.53846153846153,100,121.53846153846153,0.25,1.29,1.29,516,100,516,null,0,null,null,0,null,null,0,null,null,0,null,null,0]
[null,"4.3","ГБОУ ВО \"Нижегородский государственный инженерно-экономический университет\" / Среднее / ","Инженерная инфраструктура","Реконструкция учебно-лабораторного корпуса №3 ","2018 - 2018","Администрация муниципального района (городского округа)",3,3,3,100,100,100,null,0,0,null,null,null,3,3,3,100,100,100,null,0,0,{"$nulls":4},0,null,null,0,null,null,0,null,null,0,null,null,0]
[null,"4.4","Администрация Княгининского муниципального района / Среднее / ","Инженерная инфраструктура","Формирование современной городской среды на территории города Княгинино Княгининского района Нижегородской области на 2018-2022 годы","2018 - 2018","Администрация муниципального района (городского округа)",4.4800000000000004,5.08,5.08,113.39285714285714,100,113.39285714285714,2.98,2.98,2.98,100,100,100,1.05,1.59,1.59,151.42857142857142,100,151.42857142857142,0.45,0.51,0.51,113.33333333333333,100,113.33333333333333,null,0,null,null,0,null,null,0,null,null,0,null,null,0]
[null,"Транспортная инфраструктура","Транспортная инфраструктура","Транспортная инфраструктура","Транспортная инфраструктура","Транспортная инфраструктура","Транспортная инфраструктура","Транспортная инфраструктура","Транспортная инфраструктура","Транспортная инфраструктура","Транспортная инфраструктура","Транспортная инфраструктура","Транспортная инфраструктура","Транспортная инфраструктура","Транспортная инфраструктура","Транспортная инфраструктура","Транспортная инфраструктура","Транспортная инфраструктура","Транспортная инфраструктура","Транспортная инфраструктура","Транспортная инфраструктура","Транспортная инфраструктура","Транспортная инфраструктура","Транспортная инфраструктура","Транспортная инфраструктура","Транспортная инфраструктура","Транспортная инфраструктура","Транспортная инфраструктура","Транспортная инфраструктура","Транспортная инфраструктура","Транспортная инфраструктура","Транспортная инфраструктура","Транспортная инфраструктура","Транспортная инфраструктура","Транспортная инфраструктура","Транспортная инфраструктура","Транспортная инфраструктура","Транспортная инфраструктура","Транспортная инфраструктура","Транспортная инфраструктура","Транспортная инфраструктура","Транспортная инфраструктура","Транспортная инфраструктура","Транспортная инфраструктура","Транспортная инфраструктура","Транспортная инфраструктура","Транспортная инфраструктура"]
[null,"5.1","Администрация Княгининского муниципального района / Среднее / ","Транспортная инфраструктура","Ремонт основной (центральной) ул.Октябрьская в г.Княгинино Нижегородской области","2018 - 2018","Администрация муниципального района (городского округа)",6.93,6.93,6.93,100,100,100,null,0,0,null,null,null,4.7,4.7,4.7,100,100,100,2.23,2.23,2.23,100,100,100,null,0,null,null,0,null,null,0,null,null,0,null,null,0]
[null,"5.2","Администрация Княгининского муниципального района / Среднее / ","Транспортная инфраструктура","Строительство мостового перехода через р.Степановка на автомобильной дороге (22 ОП НР 22К-0043) Лысково-Княгинино км 16+091 в Княгининском районе Нижегородской области","2018 - 2018","Администрация муниципального района (городского округа)",49.97,46.6,46.6,93.255953572143284,100,93.255953572143284,null,0,0,null,null,null,49.97,46.6,46.6,93.255953572143284,100,93.255953572143284,null,0,0,{"$nulls":4},0,null,null,0,null,null,0,null,null,0,null,null,0]
[{"$nulls":6},"Итого",{"$f":"SUM(H10:H16,H18:H22,H23:H24,H26:H29,H30:H31,H32:H34,H35,H37:H39,H40,H42:H43)","v":155.18},{"$f":"SUM(I10:I16,I18:I22,I23:I24,I26:I29,I30:I31,I32:I34,I35,I37:I39,I40,I42:I43)","v":67.03},211.73000000000002,43.2,315.89999999999998,136.4,{"$f":"SUM(N10:N16,N18:N22,N23:N24,N26:N29,N30:N31,N32:N34,N35,N37:N39,N40,N42:N43)","v":3.38},{"$f":"SUM(O10:O16,O18:O22,O23:O24,O26:O29,O30:O31,O32:O34,O35,O37:O39,O40,O42:O43)","v":5.59},{"$f":"SUM(P10:P16,P18:P22,P23:P24,P26:P29,P30:P31,P32:P34,P35,P37:P39,P40,P42:P43)","v":5.59},165.4,100,165.4,{"$f":"SUM(T10:T16,T18:T22,T23:T24,T26:T29,T30:T31,T32:T34,T35,T37:T39,T40,T42:T43)","v":59.769999999999996},{"$f":"SUM(U10:U16,U18:U22,U23:U24,U26:U29,U30:U31,U32:U34,U35,U37:U39,U40,U42:U43)","v":57.41},{"$f":"SUM(V10:V16,V18:V22,V23:V24,V26:V29,V30:V31,V32:V34,V35,V37:V39,V40,V42:V43)","v":57.41},96.1,100,96.1,{"$f":"SUM(Z10:Z16,Z18:Z22,Z23:Z24,Z26:Z29,Z30:Z31,Z32:Z34,Z35,Z37:Z39,Z40,Z42:Z43)","v":2.9299999999999997},{"$f":"SUM(AA10:AA16,AA18:AA22,AA23:AA24,AA26:AA29,AA30:AA31,AA32:AA34,AA35,AA37:AA39,AA40,AA42:AA43)","v":4.03},{"$f":"SUM(AB10:AB16,AB18:AB22,AB23:AB24,AB26:AB29,AB30:AB31,AB32:AB34,AB35,AB37:AB39,AB40,AB42:AB43)","v":4.03},137.5,100,137.5,{"$f":"SUM(AF10:AF16,AF18:AF22,AF23:AF24,AF26:AF29,AF30:AF31,AF32:AF34,AF35,AF37:AF39,AF40,AF42:AF43)","v":89.1},{"$f":"SUM(AG10:AG16,AG18:AG22,AG23:AG24,AG26:AG29,AG30:AG31,AG32:AG34,AG35,AG37:AG39,AG40,AG42:AG43)","v":144.69999999999999},162.4,{"$f":"SUM(AI10:AI16,AI18:AI22,AI23:AI24,AI26:AI29,AI30:AI31,AI32:AI34,AI35,AI37:AI39,AI40,AI42:AI43)","v":2767.94},{"$f":"SUM(AJ10:AJ16,AJ18:AJ22,AJ23:AJ24,AJ26:AJ29,AJ30:AJ31,AJ32:AJ34,AJ35,AJ37:AJ39,AJ40,AJ42:AJ43)","v":2597.8800000000006},93.9,{"$f":"SUM(AL10:AL16,AL18:AL22,AL23:AL24,AL26:AL29,AL30:AL31,AL32:AL34,AL35,AL37:AL39,AL40,AL42:AL43)","v":132.30000000000001},{"$f":"SUM(AM10:AM16,AM18:AM22,AM23:AM24,AM26:AM29,AM30:AM31,AM32:AM34,AM35,AM37:AM39,AM40,AM42:AM43)","v":132.39999999999998},100.1,{"$f":"SUM(AO10:AO16,AO18:AO22,AO23:AO24,AO26:AO29,AO30:AO31,AO32:AO34,AO35,AO37:AO39,AO40,AO42:AO43)","v":57.16},{"$f":"SUM(AP10:AP16,AP18:AP22,AP23:AP24,AP26:AP29,AP30:AP31,AP32:AP34,AP35,AP37:AP39,AP40,AP42:AP43)","v":57.23},100.1,{"$f":"SUM(AR10:AR16,AR18:AR22,AR23:AR24,AR26:AR29,AR30:AR31,AR32:AR34,AR35,AR37:AR39,AR40,AR42:AR43)","v":16},{"$f":"SUM(AS10:AS16,AS18:AS22,AS23:AS24,AS26:AS29,AS30:AS31,AS32:AS34,AS35,AS37:AS39,AS40,AS42:AS43)","v":16},100]